[Event "*** MasterClass Titled Tuesday Blitz"]
[Site "Chess.com"]
[Date "2017.08.01"]
[Round "5"]
[White "OldweakGM"]
[Black "TregubovP"]
[Result "0-1"]
[WhiteElo "2581"]
[BlackElo "2520"]
[TimeControl "180+2"]
[EndTime "14:00:55 PDT"]
[Termination "TregubovP won on time"]

1. d4 {[%clk 0:03:01.9]} 1... Nf6 {[%clk 0:02:58.7]} 2. Bf4 {[%clk 0:03:02.1]}
2... d5 {[%clk 0:02:58.6]} 3. e3 {[%clk 0:03:01.2]} 3... c5 {[%clk 0:03:00.2]}
4. c3 {[%clk 0:03:02.3]} 4... Nc6 {[%clk 0:03:01]} 5. Nd2 {[%clk 0:03:02.8]}
5... Bf5 {[%clk 0:03:00.2]} 6. Qb3 {[%clk 0:03:02.2]} 6... Qc8 {[%clk
0:02:58.6]} 7. Ngf3 {[%clk 0:02:55.7]} 7... e6 {[%clk 0:02:58.3]} 8. h3 {[%clk
0:02:54.8]} 8... h6 {[%clk 0:02:58.4]} 9. dxc5 {[%clk 0:02:53.4]} 9... Bxc5
{[%clk 0:02:58]} 10. Nd4 {[%clk 0:02:55.1]} 10... Bg6 {[%clk 0:02:56]} 11. Bh2
{[%clk 0:02:48.1]} 11... O-O {[%clk 0:02:54.2]} 12. Be2 {[%clk 0:02:49.4]} 12...
Re8 {[%clk 0:02:54.2]} 13. N2f3 {[%clk 0:02:48.3]} 13... Ne4 {[%clk 0:02:40.5]}
14. O-O {[%clk 0:02:48.9]} 14... e5 {[%clk 0:02:33.2]} 15. Nxc6 {[%clk
0:02:30.1]} 15... bxc6 {[%clk 0:02:34.1]} 16. Nxe5 {[%clk 0:02:31.2]} 16... Nd2
{[%clk 0:02:32.4]} 17. Qa4 {[%clk 0:02:31.6]} 17... Nxf1 {[%clk 0:02:33.2]} 18.
Bxf1 {[%clk 0:02:26.9]} 18... Re6 {[%clk 0:02:20.4]} 19. Ba6 {[%clk 0:02:27.1]}
19... Qe8 {[%clk 0:02:12.5]} 20. Bb7 {[%clk 0:02:22.2]} 20... Rd8 {[%clk
0:02:06.7]} 0-1

[Event "*** MasterClass Titled Tuesday Blitz"]
[Site "Chess.com"]
[Date "2017.08.01"]
[Round "5"]
[White "FairChess_on_YouTube"]
[Black "lukas_111111"]
[Result "1-0"]
[WhiteElo "2739"]
[BlackElo "2424"]
[TimeControl "180+2"]
[EndTime "14:01:43 PDT"]
[Termination "FairChess_on_YouTube won by resignation"]

1. d4 {[%clk 0:03:01.9]} 1... Nf6 {[%clk 0:01:49.9]} 2. Bg5 {[%clk 0:03:01]}
2... d5 {[%clk 0:01:49.5]} 3. Nd2 {[%clk 0:03:01.3]} 3... c5 {[%clk 0:01:49.1]}
4. dxc5 {[%clk 0:03:02.3]} 4... e6 {[%clk 0:01:48.6]} 5. b4 {[%clk 0:03:03.3]}
5... a5 {[%clk 0:01:48.8]} 6. a3 {[%clk 0:02:55.2]} 6... Nc6 {[%clk 0:01:48.3]}
7. c3 {[%clk 0:02:53.6]} 7... h6 {[%clk 0:01:49.2]} 8. Bh4 {[%clk 0:02:51.7]}
8... g5 {[%clk 0:01:50]} 9. Bg3 {[%clk 0:02:53]} 9... Bg7 {[%clk 0:01:50.3]} 10.
e3 {[%clk 0:02:53.5]} 10... O-O {[%clk 0:01:42.5]} 11. Ne2 {[%clk 0:02:50.6]}
11... axb4 {[%clk 0:01:29.6]} 12. axb4 {[%clk 0:02:50]} 12... Rxa1 {[%clk
0:01:30.3]} 13. Qxa1 {[%clk 0:02:51.9]} 13... Ne4 {[%clk 0:01:29]} 14. Nxe4
{[%clk 0:02:39.1]} 14... dxe4 {[%clk 0:01:25.7]} 15. Nd4 {[%clk 0:02:39.8]}
15... Ne5 {[%clk 0:01:21.4]} 16. Bxe5 {[%clk 0:02:37.1]} 16... Bxe5 {[%clk
0:01:21.6]} 17. Bc4 {[%clk 0:02:37.5]} 17... Qc7 {[%clk 0:01:17.7]} 18. h4
{[%clk 0:02:20.2]} 18... g4 {[%clk 0:01:03.6]} 19. Qb1 {[%clk 0:02:19.9]} 19...
Bxd4 {[%clk 0:00:56.4]} 20. cxd4 {[%clk 0:02:19.1]} 20... f5 {[%clk 0:00:58]}
21. g3 {[%clk 0:02:17.6]} 21... Kg7 {[%clk 0:00:58.5]} 22. O-O {[%clk
0:02:16.6]} 22... Bd7 {[%clk 0:00:58.1]} 23. Qb2 {[%clk 0:02:14.9]} 23... Kh7
{[%clk 0:00:54.8]} 24. Ra1 {[%clk 0:02:14.6]} 24... Qb8 {[%clk 0:00:39.6]} 25.
b5 {[%clk 0:02:12.7]} 25... Qc7 {[%clk 0:00:32.1]} 26. Ra7 {[%clk 0:02:11.7]}
26... Bc8 {[%clk 0:00:27.2]} 27. b6 {[%clk 0:02:08.3]} 27... Qg7 {[%clk
0:00:24]} 28. c6 {[%clk 0:02:07.1]} 28... f4 {[%clk 0:00:20.5]} 29. exf4 {[%clk
0:01:59.6]} 29... Rxf4 {[%clk 0:00:15.4]} 30. cxb7 {[%clk 0:01:53.9]} 30... Bxb7
{[%clk 0:00:15.3]} 31. gxf4 {[%clk 0:01:54.7]} 1-0

[Event "*** MasterClass Titled Tuesday Blitz"]
[Site "Chess.com"]
[Date "2017.08.01"]
[Round "5"]
[White "gui_borba"]
[Black "YaWaleriy"]
[Result "0-1"]
[WhiteElo "2120"]
[BlackElo "2210"]
[TimeControl "180+2"]
[EndTime "14:02:08 PDT"]
[Termination "YaWaleriy won by checkmate"]

1. Nf3 {[%clk 0:03:01.9]} 1... d5 {[%clk 0:03:00.3]} 2. b3 {[%clk 0:03:01.4]}
2... e6 {[%clk 0:03:00.1]} 3. Bb2 {[%clk 0:03:01.9]} 3... Nf6 {[%clk 0:03:01.3]}
4. e3 {[%clk 0:03:03.3]} 4... Be7 {[%clk 0:03:01.9]} 5. d4 {[%clk 0:03:04]} 5...
O-O {[%clk 0:03:02.7]} 6. Bd3 {[%clk 0:03:05.3]} 6... b6 {[%clk 0:03:03.8]} 7.
O-O {[%clk 0:03:03.4]} 7... Bb7 {[%clk 0:03:04.9]} 8. Nbd2 {[%clk 0:03:03.8]}
8... c5 {[%clk 0:03:05.8]} 9. c4 {[%clk 0:03:04.1]} 9... Nbd7 {[%clk 0:03:02.9]}
10. Qe2 {[%clk 0:03:05.1]} 10... Rc8 {[%clk 0:03:01.3]} 11. Rfd1 {[%clk
0:03:04.7]} 11... Bd6 {[%clk 0:03:02.4]} 12. e4 {[%clk 0:02:57.9]} 12... dxe4
{[%clk 0:03:02.5]} 13. Nxe4 {[%clk 0:02:59.8]} 13... Nxe4 {[%clk 0:03:03]} 14.
Bxe4 {[%clk 0:03:01.7]} 14... Bxe4 {[%clk 0:03:03.4]} 15. Qxe4 {[%clk
0:03:03.6]} 15... Nf6 {[%clk 0:03:04.6]} 16. Qh4 {[%clk 0:03:00]} 16... Qe7
{[%clk 0:02:41]} 17. dxc5 {[%clk 0:02:45.8]} 17... Bxc5 {[%clk 0:02:41.6]} 18.
Ng5 {[%clk 0:02:45.5]} 18... h6 {[%clk 0:02:37.6]} 19. Bxf6 {[%clk 0:02:44.6]}
19... Qxf6 {[%clk 0:02:32.9]} 20. Nf3 {[%clk 0:02:45.7]} 20... Qxh4 {[%clk
0:02:25.9]} 21. Nxh4 {[%clk 0:02:47.6]} 21... Rfd8 {[%clk 0:02:26.7]} 22. Nf3
{[%clk 0:02:47.8]} 22... f6 {[%clk 0:02:24.8]} 23. Kf1 {[%clk 0:02:48.5]} 23...
Kf7 {[%clk 0:02:25.3]} 24. Ke2 {[%clk 0:02:49.5]} 24... h5 {[%clk 0:02:25.8]}
25. Nd2 {[%clk 0:02:49.9]} 25... f5 {[%clk 0:02:25.3]} 26. Nf3 {[%clk
0:02:49.9]} 26... Kf6 {[%clk 0:02:25.6]} 27. h4 {[%clk 0:02:37.3]} 27... e5
{[%clk 0:02:26]} 28. Ng5 {[%clk 0:02:38]} 28... e4 {[%clk 0:02:26.6]} 29. Nh3
{[%clk 0:02:37.7]} 29... Bd6 {[%clk 0:02:23.5]} 30. Rd5 {[%clk 0:02:35.1]} 30...
Be5 {[%clk 0:02:22.4]} 31. Rad1 {[%clk 0:02:34.3]} 31... Rxd5 {[%clk 0:02:23.3]}
32. Rxd5 {[%clk 0:02:35.8]} 32... Rc5 {[%clk 0:02:22.7]} 33. Rd7 {[%clk
0:02:27.1]} 33... Rc7 {[%clk 0:02:22.5]} 34. Rd8 {[%clk 0:02:26.9]} 34... b5
{[%clk 0:02:19.1]} 35. Ng5 {[%clk 0:02:11.9]} 35... bxc4 {[%clk 0:02:17.1]} 36.
bxc4 {[%clk 0:01:54.6]} 36... Rxc4 {[%clk 0:02:17.8]} 37. Rf8+ {[%clk
0:01:55.7]} 37... Kg6 {[%clk 0:02:18.1]} 38. f3 {[%clk 0:01:40.5]} 38... exf3+
{[%clk 0:02:12.9]} 39. Nxf3 {[%clk 0:01:38.6]} 39... Bf6 {[%clk 0:02:11.7]} 40.
Kd3 {[%clk 0:01:25.2]} 40... Ra4 {[%clk 0:02:10.8]} 41. Ra8 {[%clk 0:01:20.3]}
41... Rxa2 {[%clk 0:02:09.8]} 42. g3 {[%clk 0:01:21.8]} 42... Ra3+ {[%clk
0:02:08.9]} 43. Ke2 {[%clk 0:01:23]} 43... Kh7 {[%clk 0:02:04.6]} 44. Kf2 {[%clk
0:01:17.6]} 44... a5 {[%clk 0:02:04.1]} 45. Ne1 {[%clk 0:01:12.2]} 45... a4
{[%clk 0:02:02.2]} 46. Ng2 {[%clk 0:01:11.5]} 46... Bd4+ {[%clk 0:01:59.6]} 47.
Kf1 {[%clk 0:01:08.3]} 47... Ra1+ {[%clk 0:01:55.6]} 48. Ke2 {[%clk 0:01:09]}
48... Ra2+ {[%clk 0:01:56.4]} 49. Kf3 {[%clk 0:01:10.2]} 49... Rf2# {[%clk
0:01:56.5]} 0-1

[Event "*** MasterClass Titled Tuesday Blitz"]
[Site "Chess.com"]
[Date "2017.08.01"]
[Round "5"]
[White "michaelq2d5"]
[Black "Bengalas"]
[Result "1-0"]
[WhiteElo "2601"]
[BlackElo "2460"]
[TimeControl "180+2"]
[EndTime "14:02:13 PDT"]
[Termination "michaelq2d5 won by checkmate"]

1. d4 {[%clk 0:03:02]} 1... Nf6 {[%clk 0:03:00.4]} 2. c4 {[%clk 0:03:03]} 2...
e6 {[%clk 0:03:00.8]} 3. Nc3 {[%clk 0:03:03.9]} 3... Bb4 {[%clk 0:03:00.7]} 4.
Qc2 {[%clk 0:03:04.9]} 4... d6 {[%clk 0:02:59.9]} 5. Nf3 {[%clk 0:03:01.9]} 5...
O-O {[%clk 0:02:53.9]} 6. g3 {[%clk 0:03:01.9]} 6... b6 {[%clk 0:02:43.8]} 7.
Bg2 {[%clk 0:03:02.7]} 7... Bb7 {[%clk 0:02:44.3]} 8. O-O {[%clk 0:03:03.7]}
8... Bxc3 {[%clk 0:02:36.2]} 9. Qxc3 {[%clk 0:03:05.6]} 9... a5 {[%clk
0:02:37.1]} 10. b3 {[%clk 0:03:06.3]} 10... Nbd7 {[%clk 0:02:37.2]} 11. Bb2
{[%clk 0:03:07.1]} 11... Qe7 {[%clk 0:02:37.9]} 12. Rad1 {[%clk 0:03:06.3]}
12... Ne4 {[%clk 0:02:23.9]} 13. Qc2 {[%clk 0:03:02.5]} 13... f5 {[%clk
0:02:23.2]} 14. d5 {[%clk 0:03:03]} 14... e5 {[%clk 0:02:16.7]} 15. Nh4 {[%clk
0:03:01.5]} 15... g6 {[%clk 0:02:01.3]} 16. Bxe4 {[%clk 0:03:00.1]} 16... fxe4
{[%clk 0:02:03]} 17. Qxe4 {[%clk 0:03:01.2]} 17... Nc5 {[%clk 0:01:58.6]} 18.
Qe3 {[%clk 0:02:58.9]} 18... Rae8 {[%clk 0:01:55.4]} 19. Qh6 {[%clk 0:02:56.1]}
19... Bc8 {[%clk 0:01:48.8]} 20. f3 {[%clk 0:02:51.3]} 20... Ba6 {[%clk
0:01:37.6]} 21. f4 {[%clk 0:02:18.2]} 21... exf4 {[%clk 0:01:24.6]} 22. Nxg6
{[%clk 0:02:09.8]} 22... Qe3+ {[%clk 0:01:19.6]} 23. Rf2 {[%clk 0:02:10.1]}
23... Rf7 {[%clk 0:01:16.7]} 24. Bd4 {[%clk 0:02:09.9]} 24... Qe4 {[%clk
0:01:05.6]} 25. Nxf4 {[%clk 0:02:07.6]} 25... Qe7 {[%clk 0:00:53.9]} 26. Rdf1
{[%clk 0:01:21.1]} 26... Ne4 {[%clk 0:00:50.9]} 27. Ng6 {[%clk 0:01:11.6]} 27...
Qg5 {[%clk 0:00:22.2]} 28. Qg7+ {[%clk 0:01:03.3]} 28... Rxg7 {[%clk 0:00:21.5]}
29. Rf8+ {[%clk 0:01:04.9]} 29... Rxf8 {[%clk 0:00:20.5]} 30. Rxf8# {[%clk
0:01:06.9]} 1-0

[Event "*** MasterClass Titled Tuesday Blitz"]
[Site "Chess.com"]
[Date "2017.08.01"]
[Round "5"]
[White "DiamondCrusher22"]
[Black "silverback96"]
[Result "0-1"]
[WhiteElo "2033"]
[BlackElo "2125"]
[TimeControl "180+2"]
[EndTime "14:02:13 PDT"]
[Termination "silverback96 won by resignation"]

1. e4 {[%clk 0:03:01.9]} 1... c6 {[%clk 0:02:58.6]} 2. Bc4 {[%clk 0:03:01.8]}
2... d5 {[%clk 0:03:00]} 3. Bb3 {[%clk 0:03:02.9]} 3... Nf6 {[%clk 0:02:59.3]}
4. e5 {[%clk 0:03:02.3]} 4... Ne4 {[%clk 0:03:00.1]} 5. d4 {[%clk 0:03:01.6]}
5... e6 {[%clk 0:02:57.1]} 6. Ne2 {[%clk 0:02:48.5]} 6... c5 {[%clk 0:02:56]} 7.
f3 {[%clk 0:02:32.5]} 7... Qh4+ {[%clk 0:02:29.7]} 8. g3 {[%clk 0:02:33.1]} 8...
Nxg3 {[%clk 0:02:31.6]} 9. Nxg3 {[%clk 0:02:29.5]} 9... cxd4 {[%clk 0:02:33.1]}
10. Qe2 {[%clk 0:02:05.6]} 10... Nc6 {[%clk 0:02:29.4]} 11. Nd2 {[%clk
0:01:38.4]} 11... Bb4 {[%clk 0:02:29.2]} 12. a3 {[%clk 0:01:38.3]} 12... Ba5
{[%clk 0:02:29.6]} 13. Ba4 {[%clk 0:01:35]} 13... O-O {[%clk 0:02:29.8]} 14. b4
{[%clk 0:01:27.7]} 14... Bb6 {[%clk 0:02:30.9]} 15. Bxc6 {[%clk 0:01:20.8]}
15... bxc6 {[%clk 0:02:31.6]} 16. Nb3 {[%clk 0:01:18.1]} 16... a5 {[%clk
0:02:20.4]} 17. Bb2 {[%clk 0:01:09.9]} 17... Ba6 {[%clk 0:02:21.3]} 18. Qd2
{[%clk 0:01:01]} 18... axb4 {[%clk 0:02:18.2]} 19. Bxd4 {[%clk 0:00:50.5]} 19...
Bxd4 {[%clk 0:02:15.3]} 20. Qxd4 {[%clk 0:00:49.7]} 20... Qh3 {[%clk 0:02:13.2]}
21. axb4 {[%clk 0:00:45.9]} 21... Bc4 {[%clk 0:02:13.2]} 22. Rb1 {[%clk
0:00:32.1]} 22... Ra2 {[%clk 0:02:09.3]} 23. Rg1 {[%clk 0:00:20.2]} 23... Rxc2
{[%clk 0:02:07.6]} 24. Nd2 {[%clk 0:00:14.6]} 24... Qxh2 {[%clk 0:02:02.7]} 25.
Qe3 {[%clk 0:00:10.6]} 25... Rxd2 {[%clk 0:02:00]} 26. Rh1 {[%clk 0:00:09.5]}
26... Re2+ {[%clk 0:02:01.1]} 27. Qxe2 {[%clk 0:00:05.5]} 27... Qxg3+ {[%clk
0:02:01.9]} 28. Qf2 {[%clk 0:00:05.5]} 28... Qxe5+ {[%clk 0:02:02.8]} 29. Kd1
{[%clk 0:00:05.3]} 29... Ra8 {[%clk 0:01:59]} 30. Qe1 {[%clk 0:00:04.6]} 30...
Qf5 {[%clk 0:01:54.9]} 31. Rc1 {[%clk 0:00:03.8]} 31... Qxf3+ {[%clk 0:01:54.8]}
32. Kd2 {[%clk 0:00:03.7]} 32... Ra2+ {[%clk 0:01:55.4]} 33. Rc2 {[%clk
0:00:04.9]} 33... Qd3+ {[%clk 0:01:56.2]} 0-1

[Event "*** MasterClass Titled Tuesday Blitz"]
[Site "Chess.com"]
[Date "2017.08.01"]
[Round "5"]
[White "TheLancer"]
[Black "B-man"]
[Result "1-0"]
[WhiteElo "2475"]
[BlackElo "2380"]
[TimeControl "180+2"]
[EndTime "14:02:18 PDT"]
[Termination "TheLancer won by resignation"]

1. e4 {[%clk 0:03:01.9]} 1... c5 {[%clk 0:02:31.7]} 2. Nf3 {[%clk 0:03:01.8]}
2... d6 {[%clk 0:02:32.8]} 3. d4 {[%clk 0:03:03.3]} 3... cxd4 {[%clk 0:02:34]}
4. Nxd4 {[%clk 0:03:05.2]} 4... a6 {[%clk 0:02:35.4]} 5. Be2 {[%clk 0:02:53.9]}
5... Nf6 {[%clk 0:02:34]} 6. Nc3 {[%clk 0:02:54.7]} 6... Nc6 {[%clk 0:02:35]} 7.
O-O {[%clk 0:02:50.2]} 7... e6 {[%clk 0:02:35.2]} 8. Kh1 {[%clk 0:02:46.6]} 8...
Be7 {[%clk 0:02:36]} 9. f4 {[%clk 0:02:46.4]} 9... Qc7 {[%clk 0:02:34.7]} 10.
Bf3 {[%clk 0:02:38.9]} 10... O-O {[%clk 0:02:34.6]} 11. a4 {[%clk 0:02:32.1]}
11... Re8 {[%clk 0:02:34]} 12. Nb3 {[%clk 0:02:31.9]} 12... Na5 {[%clk
0:02:31.1]} 13. Qe1 {[%clk 0:02:23.3]} 13... Nxb3 {[%clk 0:02:27]} 14. cxb3
{[%clk 0:02:24.2]} 14... Qb6 {[%clk 0:02:28.4]} 15. e5 {[%clk 0:01:39.7]} 15...
dxe5 {[%clk 0:02:18]} 16. fxe5 {[%clk 0:01:40.5]} 16... Nd7 {[%clk 0:02:17.1]}
17. Qg3 {[%clk 0:01:22.7]} 17... Qxb3 {[%clk 0:01:58.1]} 18. Be4 {[%clk
0:01:04.7]} 18... Bf8 {[%clk 0:01:07.9]} 19. Qh3 {[%clk 0:00:33.9]} 19... g6
{[%clk 0:01:01]} 20. Rxf7 {[%clk 0:00:32]} 20... Kxf7 {[%clk 0:01:02.6]} 21.
Qxh7+ {[%clk 0:00:32.8]} 21... Bg7 {[%clk 0:01:03.1]} 22. Bh6 {[%clk 0:00:34.3]}
22... Ke7 {[%clk 0:00:53.5]} 23. Bg5+ {[%clk 0:00:30.7]} 23... Nf6 {[%clk
0:00:45.2]} 24. Qxg7+ {[%clk 0:00:28.3]} 1-0

[Event "*** MasterClass Titled Tuesday Blitz"]
[Site "Chess.com"]
[Date "2017.08.01"]
[Round "5"]
[White "stepanosinovsky"]
[Black "Blitzking4444"]
[Result "1-0"]
[WhiteElo "2290"]
[BlackElo "2155"]
[TimeControl "180+2"]
[EndTime "14:02:38 PDT"]
[Termination "stepanosinovsky won on time"]

1. e4 {[%clk 0:03:01.9]} 1... e6 {[%clk 0:03:00.8]} 2. d3 {[%clk 0:03:02]} 2...
d5 {[%clk 0:03:01.6]} 3. Nd2 {[%clk 0:03:03.9]} 3... c5 {[%clk 0:03:02.8]} 4.
Ngf3 {[%clk 0:03:04.2]} 4... Nc6 {[%clk 0:03:04.4]} 5. g3 {[%clk 0:03:05.2]}
5... g6 {[%clk 0:03:05.8]} 6. h4 {[%clk 0:03:04.4]} 6... Bg7 {[%clk 0:03:02.3]}
7. h5 {[%clk 0:03:04.7]} 7... g5 {[%clk 0:03:02]} 8. exd5 {[%clk 0:02:51.4]}
8... exd5 {[%clk 0:03:01.3]} 9. Qe2+ {[%clk 0:02:39.1]} 9... Kf8 {[%clk
0:02:37.6]} 10. Nb3 {[%clk 0:02:29.7]} 10... Bg4 {[%clk 0:02:24.9]} 11. Bg2
{[%clk 0:02:01.3]} 11... c4 {[%clk 0:02:08.1]} 12. dxc4 {[%clk 0:01:45.9]} 12...
dxc4 {[%clk 0:02:08.8]} 13. Qxc4 {[%clk 0:01:45.5]} 13... Bxf3 {[%clk 0:02:01]}
14. Bxf3 {[%clk 0:01:45.7]} 14... Ne5 {[%clk 0:01:57.9]} 15. Qb4+ {[%clk
0:01:40.1]} 15... Ne7 {[%clk 0:01:45]} 16. Bxb7 {[%clk 0:01:17.4]} 16... Rb8
{[%clk 0:01:45.7]} 17. Qe4 {[%clk 0:01:11.4]} 17... Qb6 {[%clk 0:00:55.1]} 18.
h6 {[%clk 0:01:00.8]} 18... Bf6 {[%clk 0:00:48.6]} 19. Bxg5 {[%clk 0:00:52]}
19... Rxb7 {[%clk 0:00:03.9]} 20. Bxf6 {[%clk 0:00:52]} 20... Qxf6 {[%clk
0:00:02.7]} 21. Qxb7 {[%clk 0:00:52.9]} 21... Nf3+ {[%clk 0:00:04.6]} 22. Kf1
{[%clk 0:00:53.9]} 22... Ng6 {[%clk 0:00:05.4]} 23. Rd1 {[%clk 0:00:46.1]} 23...
Qe6 {[%clk 0:00:02.6]} 24. Rd8+ {[%clk 0:00:45.7]} 1-0

[Event "*** MasterClass Titled Tuesday Blitz"]
[Site "Chess.com"]
[Date "2017.08.01"]
[Round "5"]
[White "djano"]
[Black "jeaston1"]
[Result "0-1"]
[WhiteElo "2314"]
[BlackElo "2208"]
[TimeControl "180+2"]
[EndTime "14:02:53 PDT"]
[Termination "jeaston1 won by resignation"]

1. d4 {[%clk 0:03:01.9]} 1... d5 {[%clk 0:02:27.6]} 2. Bf4 {[%clk 0:03:00.4]}
2... Nf6 {[%clk 0:02:27.5]} 3. e3 {[%clk 0:03:01]} 3... e6 {[%clk 0:02:28.4]} 4.
Nf3 {[%clk 0:03:00.7]} 4... c5 {[%clk 0:02:29.4]} 5. c3 {[%clk 0:02:58.9]} 5...
Nc6 {[%clk 0:02:30.5]} 6. Nbd2 {[%clk 0:02:58.2]} 6... Nh5 {[%clk 0:02:31.1]} 7.
Be5 {[%clk 0:02:55.4]} 7... f6 {[%clk 0:02:20.5]} 8. Bg3 {[%clk 0:02:50.2]} 8...
Be7 {[%clk 0:02:11.2]} 9. dxc5 {[%clk 0:02:45.7]} 9... Bxc5 {[%clk 0:02:11.2]}
10. Nd4 {[%clk 0:02:46.9]} 10... Nxg3 {[%clk 0:02:11.3]} 11. hxg3 {[%clk
0:02:48.8]} 11... e5 {[%clk 0:02:07.1]} 12. Nxc6 {[%clk 0:02:47.9]} 12... bxc6
{[%clk 0:02:02.9]} 13. Qc2 {[%clk 0:02:49.5]} 13... h6 {[%clk 0:02:01.4]} 14.
Qg6+ {[%clk 0:02:48.7]} 14... Kf8 {[%clk 0:02:02]} 15. O-O-O {[%clk 0:02:43.5]}
15... Qe8 {[%clk 0:02:00.6]} 16. Qc2 {[%clk 0:02:38]} 16... Rb8 {[%clk
0:01:58.2]} 17. Nb3 {[%clk 0:02:36.6]} 17... Bb6 {[%clk 0:01:49.9]} 18. c4
{[%clk 0:02:35.9]} 18... Be6 {[%clk 0:01:45.7]} 19. Kb1 {[%clk 0:02:33.2]} 19...
Qd7 {[%clk 0:01:44.3]} 20. Be2 {[%clk 0:02:30.6]} 20... a5 {[%clk 0:01:38]} 21.
c5 {[%clk 0:02:28.9]} 21... Bc7 {[%clk 0:01:38.6]} 22. Ka1 {[%clk 0:02:25.3]}
22... a4 {[%clk 0:01:38.1]} 23. Nd2 {[%clk 0:02:26.3]} 23... a3 {[%clk
0:01:38.5]} 24. b3 {[%clk 0:02:19.8]} 24... Bf5 {[%clk 0:01:34.5]} 25. e4 {[%clk
0:02:20]} 25... Be6 {[%clk 0:01:33.4]} 26. Bf3 {[%clk 0:02:16.7]} 26... d4
{[%clk 0:01:29.6]} 27. Nc4 {[%clk 0:02:14.1]} 27... Bxc4 {[%clk 0:01:23.2]} 28.
Qxc4 {[%clk 0:02:14.2]} 28... Ba5 {[%clk 0:01:21.1]} 29. g4 {[%clk 0:02:11.3]}
29... Ke7 {[%clk 0:01:20.5]} 30. Rh5 {[%clk 0:02:08.8]} 30... Qe6 {[%clk
0:01:16.9]} 31. Be2 {[%clk 0:02:03.1]} 31... Qxc4 {[%clk 0:01:15.1]} 32. Bxc4
{[%clk 0:02:05]} 32... Bb4 {[%clk 0:01:16.1]} 33. Rc1 {[%clk 0:01:48.9]} 33...
Bxc5 {[%clk 0:01:13]} 34. Bd3 {[%clk 0:01:50]} 34... Kd6 {[%clk 0:01:08.8]} 35.
g3 {[%clk 0:01:47]} 35... Ra8 {[%clk 0:01:04.2]} 36. Rc4 {[%clk 0:01:47.7]}
36... Rhb8 {[%clk 0:01:03.9]} 37. f4 {[%clk 0:01:46]} 37... Bb4 {[%clk
0:01:03.9]} 38. g5 {[%clk 0:01:43.7]} 38... Bc3+ {[%clk 0:01:04]} 39. Kb1 {[%clk
0:01:44.3]} 39... Rxb3+ {[%clk 0:01:05]} 40. Kc2 {[%clk 0:01:44.1]} 40... Rb2+
{[%clk 0:01:04.9]} 41. Kd1 {[%clk 0:01:44.5]} 41... hxg5 {[%clk 0:01:04]} 42.
Bc2 {[%clk 0:01:43.8]} 42... gxf4 {[%clk 0:00:56.9]} 43. gxf4 {[%clk 0:01:44.2]}
43... Rxa2 {[%clk 0:00:52.3]} 44. fxe5+ {[%clk 0:01:45]} 44... fxe5 {[%clk
0:00:52.6]} 45. Rg5 {[%clk 0:01:46.7]} 45... Ra1+ {[%clk 0:00:48.9]} 46. Ke2
{[%clk 0:01:47.1]} 46... Re1+ {[%clk 0:00:49.9]} 47. Kf2 {[%clk 0:01:48.4]}
47... Rf8+ {[%clk 0:00:38.3]} 48. Kg2 {[%clk 0:01:48.5]} 48... Re2+ {[%clk
0:00:38]} 0-1

[Event "*** MasterClass Titled Tuesday Blitz"]
[Site "Chess.com"]
[Date "2017.08.01"]
[Round "5"]
[White "olomi007"]
[Black "Rsnr"]
[Result "1-0"]
[WhiteElo "2509"]
[BlackElo "2508"]
[TimeControl "180+2"]
[EndTime "14:02:55 PDT"]
[Termination "olomi007 won by resignation"]

1. e4 {[%clk 0:03:01.9]} 1... c6 {[%clk 0:03:01.1]} 2. d4 {[%clk 0:03:02.1]}
2... d5 {[%clk 0:03:03]} 3. Nc3 {[%clk 0:03:02.7]} 3... dxe4 {[%clk 0:03:04.2]}
4. Nxe4 {[%clk 0:03:03.4]} 4... Bf5 {[%clk 0:03:06]} 5. Ng3 {[%clk 0:03:04.2]}
5... Bg6 {[%clk 0:03:07.6]} 6. h4 {[%clk 0:03:05.6]} 6... h6 {[%clk 0:03:08.8]}
7. Nf3 {[%clk 0:03:07.3]} 7... e6 {[%clk 0:03:10.3]} 8. h5 {[%clk 0:03:08.4]}
8... Bh7 {[%clk 0:03:11]} 9. Bd3 {[%clk 0:03:10.1]} 9... Bxd3 {[%clk 0:03:12.1]}
10. Qxd3 {[%clk 0:03:12]} 10... Nf6 {[%clk 0:03:13.9]} 11. Bd2 {[%clk
0:03:12.4]} 11... c5 {[%clk 0:03:15.5]} 12. Ne4 {[%clk 0:03:13.3]} 12... Nc6
{[%clk 0:03:16]} 13. Bc3 {[%clk 0:03:12.2]} 13... Nxe4 {[%clk 0:02:18.3]} 14.
Qxe4 {[%clk 0:03:12.4]} 14... c4 {[%clk 0:02:19.9]} 15. O-O-O {[%clk 0:03:13]}
15... Qd5 {[%clk 0:02:20.6]} 16. Rhe1 {[%clk 0:03:13.7]} 16... Rd8 {[%clk
0:01:44.4]} 17. Ne5 {[%clk 0:03:14]} 17... Qxe4 {[%clk 0:01:00.5]} 18. Rxe4
{[%clk 0:03:14.2]} 18... Nxe5 {[%clk 0:01:02.2]} 19. dxe5 {[%clk 0:03:03.5]}
19... Rxd1+ {[%clk 0:01:02]} 20. Kxd1 {[%clk 0:03:05.4]} 20... b5 {[%clk
0:01:03.7]} 21. Rg4 {[%clk 0:03:06.1]} 21... Rg8 {[%clk 0:00:50.5]} 22. b3
{[%clk 0:03:04.6]} 22... cxb3 {[%clk 0:00:51.1]} 23. cxb3 {[%clk 0:03:04.8]}
23... g5 {[%clk 0:00:47]} 24. a4 {[%clk 0:02:59.1]} 24... Bc5 {[%clk 0:00:43.3]}
25. Bd4 {[%clk 0:02:55.9]} 25... Bxd4 {[%clk 0:00:29.4]} 26. Rxd4 {[%clk
0:02:57.8]} 26... Ke7 {[%clk 0:00:31.3]} 27. axb5 {[%clk 0:02:52.4]} 27... Rb8
{[%clk 0:00:32.9]} 28. Rb4 {[%clk 0:02:43.5]} 28... Rb6 {[%clk 0:00:30.7]} 29.
Kc2 {[%clk 0:02:41.7]} 29... a5 {[%clk 0:00:30.6]} 30. bxa6 {[%clk 0:02:40.2]}
30... Rxa6 {[%clk 0:00:29.2]} 31. Ra4 {[%clk 0:02:38.1]} 31... Rc6+ {[%clk
0:00:29.5]} 32. Kd2 {[%clk 0:02:36.1]} 32... Rc5 {[%clk 0:00:30.5]} 33. Re4
{[%clk 0:02:26.5]} 33... Kd7 {[%clk 0:00:32]} 34. g3 {[%clk 0:02:19.6]} 34...
Rd5+ {[%clk 0:00:23.4]} 35. Kc2 {[%clk 0:02:19.4]} 35... Kc6 {[%clk 0:00:23.4]}
36. f4 {[%clk 0:02:15.6]} 36... g4 {[%clk 0:00:22.3]} 37. Rc4+ {[%clk
0:02:14.4]} 37... Kb6 {[%clk 0:00:22.3]} 38. b4 {[%clk 0:02:13.5]} 38... f6
{[%clk 0:00:15.1]} 39. exf6 {[%clk 0:02:13.4]} 39... Rxh5 {[%clk 0:00:16.4]} 40.
Rc5 {[%clk 0:02:11.7]} 40... Rh2+ {[%clk 0:00:16.8]} 41. Kd3 {[%clk 0:02:10.9]}
41... Ra2 {[%clk 0:00:18]} 42. f7 {[%clk 0:02:05]} 42... Ra8 {[%clk 0:00:19]}
43. f5 {[%clk 0:02:06.3]} 43... exf5 {[%clk 0:00:12.5]} 44. Rxf5 {[%clk
0:02:07.1]} 44... Rf8 {[%clk 0:00:14.4]} 45. Ke4 {[%clk 0:02:08.4]} 45... Kc6
{[%clk 0:00:15.1]} 46. b5+ {[%clk 0:02:08.5]} 46... Kd6 {[%clk 0:00:16.5]} 47.
b6 {[%clk 0:02:09.1]} 47... Ke7 {[%clk 0:00:18.1]} 48. b7 {[%clk 0:02:08]} 48...
h5 {[%clk 0:00:18.6]} 49. Kf4 {[%clk 0:02:08.7]} 49... Kd7 {[%clk 0:00:19.6]}
50. Kg5 {[%clk 0:02:08.3]} 50... Kc7 {[%clk 0:00:20.4]} 51. Kxh5 {[%clk
0:02:08.6]} 51... Kxb7 {[%clk 0:00:21.8]} 52. Kg6 {[%clk 0:02:10]} 52... Kc7
{[%clk 0:00:23.1]} 53. Kg7 {[%clk 0:02:11.4]} 1-0